lending/lending_fUSD_20250411
["ID","MTS","AMOUNT","RATE_DAILY","PERIOD"]
[357739703,1744408246873,-153.83785887,0.00037863,30]
[357739704,1744408246883,-909.89,0.00037888,5]
[357739705,1744408246893,-250.0,0.00037998,5]
[357739706,1744408246903,-202.0,0.0003804,2]
[357739707,1744408246913,-153.83785887,0.00038192,30]
[357739708,1744408246925,-900.26,0.00038217,2]
[357739709,1744408246937,-636.64,0.00038443,2]
[357739710,1744408246948,-350.0,0.00038546,5]
[357739711,1744408246958,-166.66,0.00038828,2]
[357739712,1744408246968,-208.0,0.0003893,2]
[357739713,1744408246978,-202.0,0.0003893,2]
[357739714,1744408246990,-750.0,0.00039,2]
[357739715,1744408247001,-818.58,0.00039092,2]
[357739716,1744408247012,-400.0,0.00039094,5]
[357739717,1744408247023,-818.58,0.00039102,2]
[357739718,1744408247036,-818.58,0.00039112,2]
[357739719,1744408247047,-818.58,0.00039122,2]
[357739720,1744408247059,-818.58,0.00039133,2]
[357739721,1744408247069,-818.58,0.00039143,2]
[357739722,1744408247080,-818.58,0.00039153,2]
[357739723,1744408247091,-818.58,0.00039163,2]
[357739724,1744408247102,-818.58,0.00039174,2]
[357739725,1744408247112,-818.58,0.00039184,2]
[357739726,1744408247122,-818.58,0.00039194,2]
[357739727,1744408247133,-227.87,0.000392,2]
[357739728,1744408247144,-818.58,0.00039205,2]
[357739729,1744408247154,-818.58,0.00039215,2]
[357739730,1744408247165,-818.58,0.00039225,2]
[357739731,1744408247178,-818.58,0.00039235,2]
[357739732,1744408247189,-818.58,0.00039246,2]
[357739733,1744408247200,-818.58,0.00039256,2]
[357739734,1744408247210,-818.58,0.00039266,2]
[357739735,1744408247221,-818.58,0.00039276,2]
[357739736,1744408247232,-818.58,0.00039287,2]
[357739737,1744408247242,-5995.40771747,0.00039421,2]
[357739738,1744408247253,-3280.54,0.00039629,2]
[357739739,1744408247448,-327.9545711,0.00039726,15]
[357739740,1744408247459,-208.0,0.0003982,2]
[357739741,1744408247470,-202.0,0.0003982,2]
[357739742,1744408247480,-589.67602045,0.0004,2]
[357739743,1744408247493,-9101.43994526,0.0004,2]
[357739744,1744408247503,-378.86471871,0.0004,2]
[357739745,1744408247512,-5066.86879862,0.0004,2]
[357739746,1744408247522,-212.34110077,0.0004,2]
[357739747,1744408247531,-152.0,0.0004,2]
[357739748,1744408247544,-1000.0,0.0004,30]
[357739749,1744408247556,-1799.99999904,0.0004,41]
[357739750,1744408247566,-151.0,0.0004,14]
[357739751,1744408247576,-601.665826,0.0004,14]
[357739752,1744408247587,-601.665826,0.0004,14]
[357739753,1744408247596,-166.66,0.00040109,2]
[357739754,1744408247605,-1500.0,0.00040271,5]
[357739755,1744408247614,-900.26,0.00040481,2]
[357739756,1744408247626,-203.0,0.0004057,56]
[357739757,1744408247636,-208.0,0.0004071,2]
[357739758,1744408247646,-202.0,0.0004071,2]
[357739759,1744408247656,-500.0,0.00040747,30]
[357739760,1744408247665,-979.51,0.00040747,30]
[357739761,1744408247675,-1088.06320745,0.0004083,2]
[357739762,1744408247684,-800.0,0.00041,2]
[357739763,1744408247694,-522.32235932,0.00041,2]
[357739764,1744408247704,-500.0,0.00041021,30]
[357739765,1744408247713,-173.43841169,0.00041095,120]
[357739766,1744408247723,-500.0,0.00041096,10]
[357739767,1744408247732,-4000.0,0.00041096,30]
[357739768,1744408247742,-150.0,0.00041096,2]
[357739769,1744408247751,-400.94605697,0.00041096,2]
[357739770,1744408247761,-500.0,0.00041096,2]
[357739771,1744408247770,-1141.7644675,0.00041132,5]
[357739772,1744408247780,-1103.43406157,0.00041132,5]
[357739773,1744408247789,-1058.06891051,0.00041132,5]
[357739774,1744408247799,-500.0,0.00041295,30]
[357739775,1744408247808,-1000.0,0.00041328,14]
[357739776,1744408247817,-165.87429171,0.00041338,2]
[357739777,1744408247827,-166.66,0.00041391,2]
[357739778,1744408247837,-987.80024434,0.000414,14]
[357739779,1744408247846,-500.0,0.00041569,30]
[357739780,1744408247856,-208.0,0.000416,2]
[357739781,1744408247865,-202.0,0.000416,2]
[357739782,1744408247875,-500.80144405,0.00041644,10]
[357739783,1744408247885,-506.43415575,0.00041644,2]
[357739784,1744408247895,-150.0,0.00041698,2]
[357739785,1744408247905,-500.0,0.00041699,10]
[357739786,1744408247915,-500.0,0.00041699,10]
[357739787,1744408247925,-500.0,0.00041699,10]
[357739788,1744408247934,-500.0,0.00041699,10]
[357739789,1744408247943,-161.031523,0.000417,14]
[357739790,1744408247952,-161.031523,0.000417,14]
[357739791,1744408247962,-206.008073,0.000417,14]
[357739792,1744408247971,-157.384614,0.000417,14]
[357739793,1744408247981,-206.008073,0.000417,14]
[357739794,1744408247991,-151.0,0.000417,14]
[357739795,1744408248001,-151.0,0.000417,14]
[357739796,1744408248010,-151.0,0.000417,14]
[357739797,1744408248020,-150.0,0.000417,2]
[357739798,1744408248031,-151.0,0.000417,14]
[357739799,1744408248041,-150.0,0.00041702,2]
[357739800,1744408248050,-150.0,0.00041713,2]
[357739801,1744408248060,-150.0,0.00041721,2]
[357739802,1744408248070,-150.0,0.00041722,2]
[357739803,1744408248080,-150.0,0.00041722,2]
[357739804,1744408248091,-150.0,0.00041723,2]
[357739805,1744408248100,-150.0,0.00041728,2]
[357739806,1744408248110,-150.0,0.00041731,2]
[357739807,1744408248119,-150.0,0.00041731,2]
[357739808,1744408248129,-150.0,0.00041734,2]
[357739809,1744408248139,-150.0,0.00041735,2]
[357739810,1744408248149,-150.0,0.00041739,2]
[357739811,1744408248160,-150.0,0.00041741,2]
[357739812,1744408248172,-150.0,0.00041742,2]
[357739813,1744408248183,-150.0,0.00041746,2]
[357739814,1744408248193,-150.0,0.00041747,14]
[357739815,1744408248203,-500.0,0.00041749,10]
[357739816,1744408248213,-500.0,0.00041749,10]
[357739817,1744408248223,-500.0,0.00041749,10]
[357739818,1744408248234,-500.0,0.00041749,10]
[357739819,1744408248244,-500.0,0.00041749,10]
[357739820,1744408248255,-500.0,0.00041749,10]
[357739821,1744408248282,-151.0,0.0004175,14]
[357739822,1744408248293,-151.0,0.0004175,14]
[357739823,1744408248303,-151.0,0.0004175,14]
[357739824,1744408248312,-151.0,0.0004175,14]
[357739825,1744408248321,-151.0,0.0004175,14]
[357739826,1744408248331,-151.491941,0.0004175,14]
[357739827,1744408248341,-156.235191,0.0004175,14]
[357739828,1744408248351,-151.0,0.0004175,14]
[357739829,1744408248361,-151.0,0.0004175,14]
[357739830,1744408248372,-151.0,0.0004175,14]
[357739831,1744408248381,-151.0,0.0004175,14]
[357739832,1744408248390,-151.0,0.0004175,14]
[357739833,1744408248400,-151.0,0.0004175,14]
[357739834,1744408248410,-151.0,0.0004175,14]
[357739835,1744408248420,-328.957981,0.0004175,14]
[357739836,1744408248430,-328.957981,0.0004175,14]
[357739837,1744408248440,-5280.106607,0.0004175,14]
[357739838,1744408248450,-151.0,0.0004175,14]
[357739839,1744408248459,-151.0,0.0004175,14]
[357739840,1744408248470,-151.0,0.0004175,14]
[357739841,1744408248488,-151.0,0.0004175,14]
[357739842,1744408248507,-256.932446,0.0004175,14]
[357739843,1744408248522,-151.0,0.0004175,14]
[357739844,1744408248531,-248.488329,0.0004175,14]
[357739845,1744408248544,-151.0,0.0004175,14]
[357739846,1744408248556,-177.38899,0.0004175,14]
[357739847,1744408248565,-248.488329,0.0004175,14]
[357739848,1744408248575,-619.019409,0.0004175,14]
[357739849,1744408248587,-619.019409,0.0004175,14]
[357739850,1744408248597,-151.0,0.0004175,14]
[357739851,1744408248606,-150.0,0.00041751,2]
[357739852,1744408248616,-150.0,0.00041759,2]
[357739853,1744408248627,-2000.0,0.00041761,3]
[357739854,1744408248637,-150.0,0.0004177,2]
[357739855,1744408248646,-150.0,0.00041787,2]
[357739856,1744408248656,-150.0,0.00041793,2]
[357739857,1744408248666,-150.0,0.00041798,2]
[357739858,1744408248676,-150.0,0.00041799,2]
[357739859,1744408248686,-150.0,0.00041799,3]
[357739860,1744408248696,-251.269688,0.000418,14]
[357739861,1744408248705,-251.269688,0.000418,14]
[357739862,1744408248716,-184.367965,0.000418,14]
[357739863,1744408248725,-184.367965,0.000418,14]
[357739864,1744408248735,-2476.22,0.000418,31]
[357739865,1744408248744,-2476.22,0.000418,31]
[357739866,1744408248753,-2476.22,0.000418,31]
[357739867,1744408248763,-2476.22,0.000418,31]
[357739868,1744408248772,-2476.22,0.000418,31]
[357739869,1744408248782,-2476.22,0.000418,31]
[357739870,1744408248791,-2476.22,0.000418,31]
[357739871,1744408248800,-2476.22,0.000418,31]
[357739872,1744408248809,-2476.22,0.000418,31]
[357739873,1744408248818,-2476.22,0.000418,31]
[357739874,1744408248827,-2476.22,0.000418,31]
[357739875,1744408248836,-2476.22,0.000418,31]
[357739876,1744408248846,-150.0,0.00041807,2]
[357739877,1744408248855,-150.0,0.0004181,2]
[357739878,1744408248864,-150.0,0.00041814,2]
[357739879,1744408248874,-150.0,0.00041816,2]
[357739880,1744408248883,-150.0,0.00041822,2]
[357739881,1744408248892,-150.0,0.00041823,2]
[357739882,1744408248902,-150.0,0.00041826,2]
[357739883,1744408248911,-151.45,0.0004184,2]
[357739884,1744408248920,-500.0,0.00041843,30]
[357739885,1744408248930,-150.0,0.00041844,2]
[357739886,1744408248940,-500.0,0.00041849,10]
[357739887,1744408248949,-500.0,0.00041849,10]
[357739888,1744408248959,-500.0,0.00041849,10]
[357739889,1744408248969,-150.0,0.00041849,2]
[357739890,1744408248978,-50000.00000001,0.0004185,3]
[357739891,1744408248988,-150.0,0.0004185,2]
[357739892,1744408248998,-151.0,0.0004185,14]
[357739893,1744408249007,-838.24058,0.0004185,14]
[357739894,1744408249017,-838.24058,0.0004185,14]
[357739895,1744408249027,-151.0,0.0004185,14]
[357739896,1744408249037,-151.0,0.0004185,14]
[357739897,1744408249047,-151.0,0.0004185,14]
[357739898,1744408249056,-151.0,0.0004185,14]
[357739899,1744408249067,-276.808174,0.0004185,14]
[357739900,1744408249076,-151.0,0.0004185,14]
[357739901,1744408249086,-150.0,0.00041854,14]
[357739902,1744408249095,-150.0,0.00041857,2]
[357739903,1744408249105,-1000.0,0.00041857,14]
[357739904,1744408249114,-5995.40771747,0.00041861,15]
[357739905,1744408249124,-150.0,0.00041862,2]
[357739906,1744408249134,-150.0,0.00041864,2]
[357739907,1744408249144,-259.58,0.00041865,2]
[357739908,1744408249155,-150.0,0.00041868,2]
[357739909,1744408249165,-150.0,0.00041874,2]
[357739910,1744408249176,-150.0,0.00041874,2]
[357739911,1744408249186,-150.0,0.00041876,2]
[357739912,1744408249196,-150.0,0.0004188,2]
[357739913,1744408249206,-21409.41244366,0.0004188,15]
[357739914,1744408249216,-150.0,0.00041889,2]
[357739915,1744408249226,-150.0,0.00041895,2]
[357739916,1744408249235,-300.0,0.00041895,2]
[357739917,1744408249245,-10000.0,0.000419,30]
[357739918,1744408249255,-150.0,0.000419,52]
[357739919,1744408249266,-150.0,0.00041904,2]
[357739920,1744408249275,-161.20016919,0.00041913,14]
[357739921,1744408249289,-150.0,0.00041916,14]
[357739922,1744408249299,-2860.12122516,0.00041917,4]
[357739923,1744408249309,-150.0,0.00041918,2]
[357739924,1744408249319,-150.0,0.0004192,2]
[357739925,1744408249330,-150.0,0.0004194,2]
[357739926,1744408249341,-150.0,0.00041951,2]
[357739927,1744408249351,-150.0,0.00041952,2]
[357739928,1744408249360,-150.0,0.00041955,2]
[357739929,1744408249370,-500.0,0.00041959,10]
[357739930,1744408249379,-500.0,0.00041959,10]
[357739931,1744408249388,-500.0,0.00041959,10]
[357739932,1744408249398,-1162.0,0.0004196,120]
[357739933,1744408249407,-151.0,0.0004196,14]
[357739934,1744408249415,-2194.8543663,0.0004196,2]
[357739935,1744408249425,-4180.5456227,0.0004196,2]
[357739936,1744408249434,-2701.5575281,0.0004196,2]
[357739937,1744408249444,-57358.4047622,0.0004196,2]
[357739938,1744408249453,-3832.172655,0.0004196,2]
[357739939,1744408249463,-150.0,0.00041966,2]
[357739940,1744408249472,-150.0,0.00041967,2]
[357739941,1744408249481,-255.75,0.00041969,120]
[357739942,1744408249490,-1162.0,0.00041969,120]
[357739943,1744408249498,-1162.0,0.0004197,120]
[357739944,1744408249507,-1162.0,0.0004197,120]
[357739945,1744408249516,-150.5,0.0004197,120]
[357739946,1744408249525,-151.0,0.0004197,2]
[357739947,1744408249535,-200.0,0.0004197,120]
[357739948,1744408249546,-500.0,0.0004197,10]
[357739949,1744408249555,-151.0,0.00041971,14]
[357739950,1744408249564,-242.330306,0.00041971,14]
[357739951,1744408249573,-208.0,0.00041971,2]
[357739952,1744408249583,-208.0,0.00041971,2]
[357739953,1744408249593,-202.0,0.00041971,2]
[357739954,1744408249603,-202.0,0.00041971,2]
[357739955,1744408249612,-151.0,0.00041971,14]
[357739956,1744408249622,-2593.7330772,0.00041971,2]
[357739957,1744408249631,-2992.6117881,0.00041971,2]
[357739958,1744408249642,-4940.2910867,0.00041971,2]
[357739959,1744408249651,-5700.0365507,0.00041971,2]
[357739960,1744408249661,-167.794743,0.00041971,14]
[357739961,1744408249671,-328.957981,0.00041971,14]
[357739962,1744408249681,-328.957981,0.00041971,14]
[357739963,1744408249690,-5280.106607,0.00041971,14]
[357739964,1744408249700,-151.0,0.00041971,14]
[357739965,1744408249710,-151.0,0.00041971,14]
[357739966,1744408249719,-151.0,0.00041971,14]
[357739967,1744408249729,-619.019409,0.00041971,14]
[357739968,1744408249738,-619.019409,0.00041971,14]
[357739969,1744408249747,-3192.5212116,0.00041971,2]
[357739970,1744408249757,-151.0,0.00041971,14]
[357739971,1744408249766,-67782.3522013,0.00041971,2]
[357739972,1744408249776,-192.14016,0.00041971,14]
[357739973,1744408249785,-4403.1590171,0.00041971,2]
[357739974,1744408249795,-601.665826,0.00041971,14]
[357739975,1744408249804,-601.665826,0.00041971,14]
[357739976,1744408249814,-500.0,0.00041978,10]
[357739977,1744408249824,-500.0,0.00041979,10]
[357739978,1744408249833,-500.0,0.00041979,10]
[357739979,1744408249843,-500.0,0.00041979,10]
[357739980,1744408249854,-150.5,0.00041979,120]
[357739981,1744408249864,-1162.0,0.00041979,120]
[357739982,1744408249874,-225.011245,0.00041979,14]
[357739983,1744408249884,-151.0,0.00041979,14]
[357739984,1744408249893,-328.957981,0.00041979,14]
[357739985,1744408249903,-328.957981,0.00041979,14]
[357739986,1744408249913,-5280.106607,0.00041979,14]
[357739987,1744408249923,-151.0,0.00041979,14]
[357739988,1744408249933,-151.0,0.00041979,14]
[357739989,1744408249943,-151.0,0.00041979,14]
[357739990,1744408249953,-151.0,0.00041979,14]
[357739991,1744408249963,-248.488329,0.00041979,14]
[357739992,1744408249973,-151.0,0.00041979,14]
[357739993,1744408249983,-248.488329,0.00041979,14]
[357739994,1744408249992,-619.019409,0.00041979,14]
[357739995,1744408250002,-619.019409,0.00041979,14]
[357739996,1744408250012,-151.0,0.00041979,14]
[357739997,1744408250022,-151.0,0.00041979,14]
[357739998,1744408250032,-151.0,0.00041979,14]
[357739999,1744408250042,-151.0,0.00041979,14]
[357740000,1744408250052,-150.0,0.00041979,3]
[357740001,1744408250062,-150.0,0.00041979,3]
[357740002,1744408250072,-150.0,0.00041979,3]
[357740003,1744408250082,-150.0,0.00041979,3]
[357740004,1744408250091,-505173.48880111,0.0004198,2]
[357740005,1744408250614,-846.64984969,0.000199,2]
[357740006,1744408250625,-250.0,0.00026294,2]
[357740007,1744408250635,-500.0,0.00027397,2]
[357740008,1744408250644,-500.0,0.00027397,2]
[357740009,1744408250653,-500.0,0.00027397,2]
[357740010,1744408250662,-500.0,0.00027397,2]
[357740011,1744408250672,-500.0,0.00027397,2]
[357740012,1744408250681,-474.81591829,0.00027397,2]
[357740013,1744408250692,-25.18408171,0.00027397,2]
[357740014,1744408250701,-500.0,0.00027397,2]
[357740015,1744408250711,-500.0,0.00027397,2]
[357740016,1744408250720,-500.0,0.00027397,2]
[357740017,1744408250729,-500.0,0.00027397,2]
[357740018,1744408250739,-500.0,0.00027397,2]
[357740019,1744408250748,-500.0,0.00027397,2]
[357740020,1744408250758,-500.0,0.00027397,2]
[357740021,1744408250767,-500.0,0.00027397,2]
[357740022,1744408250776,-500.0,0.00027397,2]
[357740023,1744408250785,-500.0,0.00027397,2]
[357740024,1744408250794,-500.0,0.00027397,2]
[357740025,1744408250803,-500.0,0.00027397,2]
[357740026,1744408250813,-500.0,0.00027397,2]
[357740027,1744408250822,-500.0,0.00027397,2]
[357740028,1744408250831,-500.0,0.00027397,2]
[357740029,1744408250841,-500.0,0.00027397,2]
[357740030,1744408250850,-500.0,0.00027397,2]
[357740031,1744408250859,-649.56752035,0.00027397,2]
[357740032,1744408250868,-500.0,0.00027397,2]
[357740033,1744408250877,-373.09157539,0.00027397,2]
[357740034,1744408250889,-126.90842461,0.00027397,2]
[357740035,1744408250899,-500.0,0.00027397,2]
[357740036,1744408250908,-500.0,0.00027397,2]
[357740037,1744408250918,-500.0,0.00027397,2]
[357740038,1744408250928,-153.89998752,0.00031994,3]
[357740039,1744408250938,-200.23593003,0.00041096,31]
[357740040,1744408250947,-980.48601371,0.0004198,2]
[357740041,1744408250959,-1505.81997889,0.0004198,2]
[357740042,1744408250970,-3522.39415,0.0004198,2]
[357740043,1744408250982,-121187.19716436,0.0004198,2]
[357740044,1744408250991,-2266.32828887,0.0004198,2]
[357740045,1744408251002,-45186.47407766,0.0004198,30]
[357740046,1744408251017,-939.3185247,0.0004198,30]
[357740047,1744408251029,-1091.48301795,0.0004198,30]
[357740048,1744408310640,-150.0,0.000198,2]
[357740049,1744408392025,-182.24834368,0.000198,2]
[357740050,1744409047562,-150.0,0.00019899,2]
[357740051,1744409096752,-250.0,0.00019,2]
[357740052,1744409125273,-171.04043135,0.00019701,2]
[357740053,1744409205142,-334.98598459,0.00019701,2]
[357740054,1744409206245,-431.80956865,0.00019701,2]
[357740055,1744409222175,-53.25382776,0.00019701,2]
[357740056,1744409222198,-106.45170243,0.000198,2]
[357740057,1744409282042,-86.15095214,0.000198,2]
[357740058,1744409282065,-156.16476326,0.00019899,2]
[357740059,1744409343074,-174.02666057,0.00019899,2]
[357740062,1744409431658,-242.315716,0.00019799,2]
[357740063,1744409431668,-669.80857617,0.00019899,2]
[357740064,1744409431677,-660.0,0.00019899,2]
[357740065,1744409431686,-300.0,0.00019899,2]
[357740066,1744409431695,-12201.8121,0.000199,2]
[357740067,1744409431704,-352.7265,0.000199,2]
[357740068,1744409431713,-256.4154,0.000199,2]
[357740069,1744409431723,-33879.03994236,0.000199,2]
[357740070,1744409431732,-284.83641918,0.000199,2]
[357740071,1744409431742,-455.36954983,0.000199,2]
[357740072,1744409431751,-300.0,0.00021,2]
[357740073,1744409431760,-420.0,0.0002167,2]
[357740074,1744409431770,-350.0,0.00023,2]
[357740075,1744409431779,-587.0,0.00023599,2]
[357740076,1744409431788,-400.0,0.00025,2]
[357740077,1744409431797,-823.0,0.00025699,2]
[357740078,1744409431807,-500.0,0.00026169,2]
[357740079,1744409431816,-8600.48413041,0.0002683,2]
[357740080,1744409431825,-7322.40297037,0.0002684,2]
[357740081,1744409431834,-433.55,0.0002684,2]
[357740082,1744409431843,-295.55,0.0002684,2]
[357740083,1744409431852,-150.99,0.0002684,2]
[357740084,1744409431861,-2639.02,0.0002684,2]
[357740085,1744409431871,-3259.96,0.00026849,2]
[357740086,1744409431880,-9999.99,0.00026849,2]
[357740087,1744409431889,-2456.42588188,0.00026849,10]
[357740090,1744409432409,-1013.90007998,0.00026849,10]
[357740091,1744409432442,-1928.12403814,0.00026849,10]
[357740092,1744409432451,-499.99,0.00026849,2]
[357740093,1744409432460,-302.3,0.00026849,2]
[357740094,1744409432470,-156.66,0.00026849,2]
[357740095,1744409432479,-450.0,0.00027,2]
[357740096,1744409432489,-314.94,0.00027,2]
[357740097,1744409432498,-171.6686,0.0002737,10]
[357740098,1744409432508,-592.74643911,0.00027397,2]
[357740099,1744409432518,-592.74643911,0.00027397,2]
[357740100,1744409432527,-592.74643911,0.00027397,2]
[357740101,1744409432536,-592.74643911,0.00027397,2]
[357740102,1744409432546,-592.74643911,0.00027397,2]
[357740103,1744409432555,-592.74643911,0.00027397,2]
[357740104,1744409432564,-592.74643911,0.00027397,2]
[357740105,1744409432573,-592.74643911,0.00027397,2]
[357740106,1744409432583,-592.74643911,0.00027397,2]
[357740107,1744409432592,-592.74643911,0.00027397,2]
[357740108,1744409432601,-592.74643911,0.00027397,2]
[357740109,1744409432611,-592.74643911,0.00027397,2]
[357740110,1744409432619,-592.74643911,0.00027397,2]
[357740111,1744409432628,-592.74643911,0.00027397,2]
[357740112,1744409432638,-592.74643911,0.00027397,2]
[357740113,1744409432647,-592.74643911,0.00027397,2]
[357740114,1744409432657,-592.74643911,0.00027397,2]
[357740115,1744409432666,-592.74643911,0.00027397,2]
[357740116,1744409432675,-592.74643911,0.00027397,2]
[357740117,1744409432685,-592.74643911,0.00027397,2]
[357740118,1744409432694,-592.74643911,0.00027397,2]
[357740119,1744409432917,-592.74643911,0.00027397,2]
[357740120,1744409432947,-592.74643911,0.00027397,2]
[357740121,1744409432957,-592.74643911,0.00027397,2]
[357740122,1744409432966,-592.74643911,0.00027397,2]
[357740123,1744409432977,-592.74643911,0.00027397,2]
[357740124,1744409432987,-592.74643911,0.00027397,2]
[357740125,1744409432996,-592.74643911,0.00027397,2]
[357740126,1744409433006,-592.74643911,0.00027397,2]
[357740127,1744409433015,-592.74643911,0.00027397,2]
[357740128,1744409433025,-592.74643911,0.00027397,2]
[357740129,1744409433035,-592.74643911,0.00027397,2]
[357740130,1744409433045,-592.74643911,0.00027397,2]
[357740131,1744409433055,-592.74643911,0.00027397,2]
[357740132,1744409433064,-592.74643911,0.00027397,2]
[357740133,1744409433074,-592.74643911,0.00027397,2]
[357740134,1744409433084,-592.74643911,0.00027397,2]
[357740135,1744409433094,-592.74643911,0.00027397,2]
[357740136,1744409433103,-592.74643911,0.00027397,2]
[357740137,1744409433112,-592.74643911,0.00027397,2]
[357740138,1744409433121,-592.74643911,0.00027397,2]
[357740139,1744409433131,-592.74643911,0.00027397,2]
[357740140,1744409433140,-592.74643911,0.00027397,2]
[357740141,1744409433150,-592.74643911,0.00027397,2]
[357740142,1744409433159,-592.74643911,0.00027397,2]
[357740143,1744409433168,-592.74643911,0.00027397,2]
[357740144,1744409433177,-592.74643911,0.00027397,2]
[357740145,1744409433186,-592.74643911,0.00027397,2]
[357740146,1744409433195,-592.74643911,0.00027397,2]
[357740147,1744409433204,-592.74643911,0.00027397,2]
[357740148,1744409433213,-592.74643911,0.00027397,2]
[357740149,1744409433223,-592.74643911,0.00027397,2]
[357740150,1744409433232,-592.74643911,0.00027397,2]
[357740151,1744409433241,-592.74643911,0.00027397,2]
[357740152,1744409433251,-592.74643911,0.00027397,2]
[357740153,1744409433260,-592.74643911,0.00027397,2]
[357740154,1744409433270,-592.74643911,0.00027397,2]
[357740155,1744409433279,-592.74643911,0.00027397,2]
[357740156,1744409433289,-592.74643911,0.00027397,2]
[357740157,1744409433298,-592.74643911,0.00027397,2]
[357740158,1744409433308,-592.74643911,0.00027397,2]
[357740159,1744409433318,-773.37853331,0.00027397,2]
[357740160,1744409433328,-773.37853331,0.00027397,2]
[357740161,1744409433337,-773.37853331,0.00027397,2]
[357740162,1744409433347,-773.37853331,0.00027397,2]
[357740163,1744409433356,-773.37853331,0.00027397,2]
[357740164,1744409433366,-773.37853331,0.00027397,2]
[357740165,1744409433375,-773.37853331,0.00027397,2]
[357740166,1744409433385,-773.37853331,0.00027397,2]
[357740167,1744409433395,-773.37853331,0.00027397,2]
[357740168,1744409433404,-773.37853331,0.00027397,2]
[357740169,1744409433414,-773.37853331,0.00027397,2]
[357740170,1744409433423,-773.37853331,0.00027397,2]
[357740171,1744409433433,-773.37853331,0.00027397,2]
[357740172,1744409433443,-773.37853331,0.00027397,2]
[357740173,1744409433453,-773.37853331,0.00027397,2]
[357740174,1744409433462,-773.37853331,0.00027397,2]
[357740175,1744409433472,-773.37853331,0.00027397,2]
[357740176,1744409433482,-773.37853331,0.00027397,2]
[357740177,1744409433492,-773.37853331,0.00027397,2]
[357740178,1744409433502,-773.37853331,0.00027397,2]
[357740179,1744409433511,-773.37853331,0.00027397,2]
[357740180,1744409433521,-773.37853331,0.00027397,2]
[357740181,1744409433531,-773.37853331,0.00027397,2]
[357740182,1744409433541,-773.37853331,0.00027397,2]
[357740183,1744409433551,-773.37853333,0.00027397,2]
[357740184,1744409433560,-773.37853333,0.00027397,2]
[357740185,1744409433570,-773.37853333,0.00027397,2]
[357740186,1744409433580,-773.37853333,0.00027397,2]
[357740187,1744409433589,-1152.0,0.00027986,2]
[357740188,1744409433598,-500.0,0.00029,2]
[357740189,1744409433608,-1613.0,0.00030477,2]
[357740190,1744409433618,-550.0,0.00031,2]
[357740191,1744409433628,-1359.319,0.0003151,2]
[357740192,1744409433637,-704.3,0.00032811,2]
[357740193,1744409433647,-600.0,0.00033,2]
[357740194,1744409433656,-2258.0,0.0003319,2]
[357740195,1744409433666,-167.09,0.00034138,120]
[357740196,1744409433675,-190.79,0.00034916,2]
[357740197,1744409433684,-159.9,0.00035,2]
[357740198,1744409433693,-650.0,0.00035,2]
[357740199,1744409433703,-9838.6033,0.00035036,2]
[357740200,1744409433713,-704.3,0.00035075,2]
[357740201,1744409433723,-2415.84304919,0.00035136,120]
[357740202,1744409437843,-10419.23695081,0.00035136,120]
[357740203,1744409437853,-150.0,0.00035463,2]
[357740204,1744409437863,-1102.748,0.00036218,44]
[357740205,1744409437874,-166.66666666,0.00036575,30]
[357740206,1744409437884,-166.84,0.000366,2]